fUSD/lending_fUSD_20240804
["ID","MTS","AMOUNT","RATE_DAILY","PERIOD"]
[334082639,1722750639489,-2384.8829198,0.00011105,2]
[334082641,1722750639498,-26133.764365,0.00011105,2]
[334082643,1722750639507,-363.29671546,0.00011105,2]
[334082645,1722750639516,-2570.6393319,0.00011105,2]
[334082647,1722750639527,-4126.3875735,0.00011105,2]
[334082649,1722750639536,-15345.91950669,0.00011105,2]
[334082651,1722750639548,-19693.1906201,0.00011105,2]
[334082653,1722750639557,-15471.57272848,0.00011105,2]
[334082655,1722750639567,-187.1322937,0.00011153,2]
[334082657,1722750639576,-5399.77968871,0.0001116,2]
[334082659,1722750639585,-3118.53446434,0.0001116,2]
[334082661,1722750639595,-151.0,0.00011178,2]
[334082664,1722750639606,-151.0,0.00011178,2]
[334082666,1722750639617,-151.0,0.00011178,2]
[334082668,1722750639626,-22607.92119112,0.00011186,2]
[334082670,1722750639635,-22639.6617797,0.00011186,2]
[334082671,1722750639646,-35700.88540887,0.00011186,2]
[334082673,1722750639656,-313.35,0.000112,2]
[334082675,1722750639665,-2000.0,0.00011216,2]
[334082677,1722750639674,-200.0,0.00011216,2]
[334082679,1722750639683,-420.0,0.00011243,2]
[334082680,1722750639692,-420.0,0.00011245,2]
[334082681,1722750639702,-162.02,0.00011291,2]
[334082682,1722750639711,-2839.13560359,0.00011324,2]
[334082683,1722750639722,-10526.6186532,0.00011324,2]
[334082684,1722750639732,-2000.0,0.00011328,2]
[334082685,1722750639741,-200.0,0.00011328,2]
[334082686,1722750639751,-237.98,0.00011355,2]
[334082687,1722750639760,-2000.0,0.00011441,2]
[334082688,1722750639769,-200.0,0.00011441,2]
[334082689,1722750639778,-322.7827889,0.00011461,2]
[334082690,1722750639789,-153.37,0.00011508,2]
[334082691,1722750639799,-200.0,0.00011556,2]
[334082692,1722750639810,-176.07,0.00011804,2]
[334082693,1722750639821,-1112.51849528,0.0001185,2]
[334082694,1722750639832,-800.0,0.00011873,2]
[334082695,1722750639843,-839.91,0.0001189,2]
[334082696,1722750639852,-1250.5050525,0.00011896,2]
[334082697,1722750639861,-1569.45565896,0.00011988,2]
[334082698,1722750639871,-500.26,0.00012,2]
[334082699,1722750639880,-550.0,0.00012,2]
[334082700,1722750639889,-57867.92271129,0.00012088,2]
[334082701,1722750639899,-151.0,0.00012088,2]
[334082702,1722750639908,-151.0,0.00012088,2]
[334082703,1722750639918,-151.0,0.00012088,2]
[334082704,1722750639927,-159.3,0.00012164,2]
[334082705,1722750639936,-150.0,0.00012164,2]
[334082707,1722750639945,-356.19,0.00012164,2]
[334082709,1722750639954,-150.0,0.00012164,2]
[334082710,1722750639963,-150.0,0.00012164,2]
[334082712,1722750639973,-356.19,0.00012164,2]
[334082714,1722750639982,-356.19,0.00012164,2]
[334082715,1722750639991,-150.0,0.00012164,2]
[334082717,1722750640003,-354.65,0.00012164,2]
[334082719,1722750640012,-150.0,0.00012164,2]
[334082721,1722750640024,-150.0,0.00012164,2]
[334082723,1722750640034,-150.0,0.00012164,2]
[334082725,1722750640047,-150.0,0.00012164,2]
[334082726,1722750640057,-5000.0,0.0001236,2]
[334082728,1722750640066,-4473.54438167,0.0001236,2]
[334082730,1722750640076,-587.0,0.00012364,2]
[334082732,1722750640087,-436.0,0.0001237,2]
[334082734,1722750640096,-3401.74049812,0.00012391,2]
[334082736,1722750640105,-7271.36467137,0.00012397,2]
[334082737,1722750640115,-275.55523172,0.0001246,2]
[334082739,1722750640125,-155.23438374,0.0001246,2]
[334082741,1722750640135,-484.8221358,0.0001254,2]
[334082743,1722750640145,-2727.84956445,0.0001254,2]
[334082745,1722750640155,-302.20065016,0.0001254,2]
[334082747,1722750640164,-155.0,0.0001254,2]
[334082748,1722750640173,-162.02,0.00012546,2]
[334082750,1722750640182,-2727.84956445,0.00012581,2]
[334082752,1722750640191,-519.74577912,0.00012581,2]
[334082754,1722750640202,-1274.6329096,0.00012581,2]
[334082756,1722750640213,-155.0,0.00012581,2]
[334082757,1722750640223,-313.34653745,0.00012613,2]
[334082759,1722750640232,-206.61353545,0.00012613,2]
[334082761,1722750640242,-237.98,0.00012617,2]
[334082763,1722750640251,-59878.18817668,0.00012621,2]
[334082764,1722750640260,-1184.1001296,0.00012665,2]
[334082766,1722750640270,-1170.33622136,0.00012666,2]
[334082768,1722750640279,-628.1624989,0.00012666,2]
[334082770,1722750640288,-653.14663724,0.00012681,2]
[334082772,1722750640298,-1138.21529033,0.0001269,2]
[334082774,1722750640307,-155.0,0.00012696,2]
[334082775,1722750640316,-349.43992738,0.00012696,2]
[334082777,1722750640326,-759.86827843,0.00012696,2]
[334082779,1722750640336,-161.6588101,0.00012749,2]
[334082781,1722750640345,-359.12397558,0.00012749,2]
[334082783,1722750640354,-249.9056956,0.00012749,2]
[334082784,1722750640363,-524.81950928,0.00012749,2]
[334082786,1722750640373,-211.30784383,0.00012749,2]
[334082788,1722750640383,-155.0,0.00012749,2]
[334082790,1722750640392,-380.05262175,0.00012749,2]
[334082792,1722750640401,-600.30179573,0.00012749,2]
[334082793,1722750640410,-164.44617922,0.00012749,2]
[334082795,1722750640420,-529.43881224,0.00012818,2]
[334082797,1722750640429,-155.0,0.00012818,2]
[334082799,1722750640439,-328.00522683,0.00012826,2]
[334082801,1722750640448,-650.62334645,0.00012826,2]
[334082802,1722750640458,-454.24379442,0.00012826,2]
[334082804,1722750640467,-454.24379442,0.00012826,2]
[334082806,1722750640476,-946.75724175,0.00012826,2]
[334082808,1722750640486,-184.44469571,0.00012826,2]
[334082810,1722750640496,-155.17219168,0.00012826,2]
[334082812,1722750640505,-297.2590854,0.00012826,2]
[334082814,1722750640515,-400.0,0.00012826,2]
[334082816,1722750640525,-429.45985907,0.00012855,2]
[334082817,1722750640534,-365.46422797,0.00012855,2]
[334082819,1722750640544,-10000.0,0.0001287,2]
[334082821,1722750640553,-1000.0,0.0001287,2]
[334082823,1722750640564,-309.05361967,0.00012883,2]
[334082825,1722750640573,-66000.0,0.0001297,7]
[334082826,1722750640582,-151.0,0.0001297,2]
[334082828,1722750640591,-151.0,0.0001297,2]
[334082830,1722750640600,-151.0,0.0001297,2]
[334082832,1722750640610,-151.0,0.0001297,2]
[334082833,1722750640619,-1007.8,0.00013,2]
[334082835,1722750640628,-586.0,0.00013,2]
[334082837,1722750640638,-300.0,0.00013,2]
[334082839,1722750640648,-155.0,0.00013,2]
[334082841,1722750640658,-1026.22123072,0.00013103,2]
[334082843,1722750640667,-176.07,0.00013115,2]
[334082845,1722750640676,-800.0,0.00013192,2]
[334082846,1722750640685,-396.0,0.000133,2]
[334082848,1722750640696,-6104.53,0.000134,2]
[334082850,1722750640705,-3000.0,0.0001349,2]
[334082852,1722750640714,-823.0,0.00013598,2]
[334082854,1722750640724,-200.0,0.00013699,2]
[334082856,1722750640733,-2751.0,0.00013699,2]
[334082858,1722750640744,-500.0,0.00013699,2]
[334082859,1722750640753,-173.56915184,0.000137,2]
[334082861,1722750640763,-6896.13,0.000137,2]
[334082863,1722750640772,-6896.13,0.000137,2]
[334082865,1722750640781,-6896.13,0.000137,2]
[334082867,1722750640791,-6896.13,0.000137,2]
[334082869,1722750640800,-6896.13,0.000137,2]
[334082871,1722750640810,-1977.4825007,0.00013791,2]
[334082873,1722750640821,-21669.4334477,0.00013791,2]
[334082875,1722750640832,-3383.1564828,0.00013791,2]
[334082877,1722750640843,-151.0,0.000138,2]
[334082879,1722750640853,-151.0,0.000138,2]
[334082881,1722750640865,-151.0,0.000138,2]
[334082883,1722750640874,-151.0,0.000138,2]
[334082884,1722750640883,-151.0,0.000138,2]
[334082886,1722750640892,-151.0,0.000138,2]
[334082888,1722750640903,-151.0,0.000138,2]
[334082890,1722750640913,-151.0,0.000138,2]
[334082892,1722750640924,-151.0,0.000138,2]
[334082894,1722750640935,-151.0,0.000138,2]
[334082896,1722750640944,-151.0,0.000138,2]
[334082898,1722750640953,-151.0,0.000138,2]
[334082900,1722750640962,-151.0,0.000138,2]
[334082901,1722750640971,-151.0,0.000138,2]
[334082903,1722750640980,-151.0,0.000138,2]
[334082905,1722750640990,-151.0,0.000138,2]
[334082907,1722750640999,-151.0,0.000138,2]
[334082909,1722750641008,-151.0,0.000138,2]
[334082911,1722750641018,-151.0,0.000138,2]
[334082912,1722750641027,-151.0,0.000138,2]
[334082914,1722750641038,-151.0,0.000138,2]
[334082916,1722750641049,-151.0,0.000138,2]
[334082917,1722750641059,-168.856548,0.000138,2]
[334082918,1722750641068,-151.0,0.000138,2]
[334082919,1722750641078,-151.0,0.000138,2]
[334082920,1722750641087,-151.0,0.000138,2]
[334082921,1722750641096,-151.0,0.000138,2]
[334082922,1722750641105,-151.0,0.000138,2]
[334082923,1722750641116,-151.0,0.000138,2]
[334082924,1722750641126,-151.0,0.000138,2]
[334082925,1722750641135,-151.0,0.000138,2]
[334082926,1722750641151,-151.0,0.000138,2]
[334082927,1722750641160,-151.0,0.000138,2]
[334082928,1722750641169,-166.06411,0.000138,2]
[334082929,1722750641179,-166.06411,0.000138,2]
[334082931,1722750641188,-166.06411,0.000138,2]
[334082933,1722750641197,-166.06411,0.000138,2]
[334082935,1722750641206,-242.406682,0.000138,2]
[334082937,1722750641215,-242.406682,0.000138,2]
[334082939,1722750641225,-258.472732,0.000138,2]
[334082941,1722750641234,-151.0,0.000138,2]
[334082943,1722750641243,-151.0,0.000138,2]
[334082945,1722750641252,-151.0,0.000138,2]
[334082947,1722750641261,-151.0,0.000138,2]
[334082949,1722750641271,-151.0,0.000138,2]
[334082951,1722750641281,-151.0,0.000138,2]
[334082953,1722750641290,-151.0,0.000138,2]
[334082955,1722750641299,-151.0,0.000138,2]
[334082957,1722750641309,-151.0,0.000138,2]
[334082958,1722750641318,-151.0,0.000138,2]
[334082960,1722750641327,-151.0,0.000138,2]
[334082962,1722750641336,-151.0,0.000138,2]
[334082964,1722750641346,-151.0,0.000138,2]
[334082966,1722750641356,-151.0,0.000138,2]
[334082968,1722750641365,-151.0,0.000138,2]
[334082970,1722750641374,-151.0,0.000138,2]
[334082972,1722750641383,-151.0,0.000138,2]
[334082974,1722750641395,-151.0,0.000138,2]
[334082976,1722750641404,-713.476676,0.000138,2]
[334082978,1722750641413,-713.476676,0.000138,2]
[334082980,1722750641423,-323.570345,0.000138,2]
[334082982,1722750641432,-323.570345,0.000138,2]
[334082984,1722750641441,-323.570345,0.000138,2]
[334082986,1722750641450,-323.570345,0.000138,2]
[334082988,1722750641459,-831.436476,0.000138,2]
[334082990,1722750641469,-831.436476,0.000138,2]
[334082992,1722750641478,-831.436476,0.000138,2]
[334082994,1722750641487,-831.436476,0.000138,2]
[334082996,1722750641496,-189.737624,0.000138,2]
[334082998,1722750641505,-189.737624,0.000138,2]
[334083000,1722750641514,-189.737624,0.000138,2]
[334083002,1722750641523,-189.737624,0.000138,2]
[334083004,1722750641533,-234.871424,0.000138,2]
[334083006,1722750641542,-151.0,0.000138,2]
[334083007,1722750641551,-151.0,0.000138,2]
[334083008,1722750641560,-234.871424,0.000138,2]
[334083009,1722750641569,-151.0,0.000138,2]
[334083010,1722750641578,-151.0,0.000138,2]
[334083011,1722750641588,-151.0,0.000138,2]
[334083012,1722750641597,-151.0,0.000138,2]
[334083013,1722750641606,-151.0,0.000138,2]
[334083014,1722750641615,-151.0,0.000138,2]
[334083015,1722750641624,-151.0,0.000138,2]
[334083016,1722750641633,-151.0,0.000138,2]
[334083017,1722750641646,-151.0,0.000138,2]
[334083018,1722750641659,-152.361397,0.000138,2]
[334083019,1722750641668,-151.0,0.000138,2]
[334083020,1722750641677,-375.338556,0.000138,2]
[334083021,1722750641687,-375.338556,0.000138,2]
[334083022,1722750641696,-151.21672,0.000138,2]
[334083023,1722750641705,-189.604451,0.000138,2]
[334083024,1722750641713,-189.604451,0.000138,2]
[334083025,1722750641723,-459.525985,0.000138,2]
[334083026,1722750641731,-459.525985,0.000138,2]
[334083027,1722750641741,-151.0,0.000138,2]
[334083028,1722750641750,-151.601312,0.000138,2]
[334083029,1722750641759,-151.601312,0.000138,2]
[334083030,1722750641768,-680.539283,0.000138,2]
[334083032,1722750641777,-151.0,0.000138,2]
[334083034,1722750641786,-680.539283,0.000138,2]
[334083036,1722750641796,-2340.034993,0.000138,2]
[334083038,1722750641805,-2340.034993,0.000138,2]
[334083040,1722750641815,-494.512697,0.000138,2]
[334083042,1722750641827,-494.512697,0.000138,2]
[334083044,1722750641837,-151.0,0.000138,2]
[334083046,1722750641847,-151.0,0.000138,2]
[334083048,1722750641857,-3354.374945,0.000138,2]
[334083050,1722750641866,-3354.374945,0.000138,2]
[334083052,1722750641875,-416.744918,0.000138,2]
[334083054,1722750641885,-416.744918,0.000138,2]
[334083056,1722750641895,-151.0,0.000138,2]
[334083058,1722750641904,-151.0,0.000138,2]
[334083060,1722750641913,-151.0,0.000138,2]
[334083062,1722750641922,-1186.43854,0.000138,2]
[334083064,1722750641931,-151.0,0.000138,2]
[334083066,1722750641942,-1186.43854,0.000138,2]
[334083068,1722750641952,-635.217773,0.000138,2]
[334083070,1722750641962,-1118.602255,0.000138,2]
[334083072,1722750641971,-151.0,0.000138,2]
[334083074,1722750641980,-635.217773,0.000138,2]
[334083076,1722750641990,-1118.602255,0.000138,2]
[334083078,1722750642001,-566.105438,0.000138,2]
[334083080,1722750642011,-566.105438,0.000138,2]
[334083082,1722750642022,-193.960991,0.000138,2]
[334083084,1722750642031,-1464.475567,0.000138,2]
[334083086,1722750642046,-193.960991,0.000138,2]
[334083088,1722750642055,-1464.475567,0.000138,2]
[334083091,1722750642066,-151.0,0.000138,2]
[334083093,1722750642075,-151.0,0.000138,2]
[334083095,1722750642086,-151.0,0.000138,2]
[334083097,1722750642095,-151.0,0.000138,2]
[334083099,1722750642104,-193.010666,0.000138,2]
[334083101,1722750642118,-151.0,0.000138,2]
[334083103,1722750642128,-156.795283,0.000138,2]
[334083105,1722750642138,-193.010666,0.000138,2]
[334083107,1722750642149,-430.613404,0.000138,2]
[334083109,1722750642158,-151.0,0.000138,2]
[334083111,1722750642168,-430.613404,0.000138,2]
[334083113,1722750642178,-151.0,0.000138,2]
[334083115,1722750642188,-10000.0,0.000138,2]
[334083117,1722750642197,-10000.0,0.000138,2]
[334083119,1722750642207,-153588.612092,0.000138,2]
[334083121,1722750642217,-10000.0,0.000138,2]
[334083123,1722750642227,-1541.449574,0.000138,2]
[334083125,1722750642236,-151.0,0.000138,2]
[334083127,1722750642245,-1541.449574,0.000138,2]
[334083129,1722750642255,-151.0,0.000138,2]
[334083131,1722750642264,-151.0,0.000138,2]
[334083133,1722750642274,-151.0,0.000138,2]
[334083135,1722750642283,-151.072879,0.000138,2]
[334083137,1722750642292,-151.0,0.000138,2]
[334083139,1722750642302,-151.072879,0.000138,2]
[334083141,1722750642311,-151.0,0.000138,2]
[334083143,1722750642320,-151.0,0.000138,2]
[334083145,1722750642329,-410.924853,0.000138,2]
[334083147,1722750642338,-410.924853,0.000138,2]
[334083149,1722750642348,-162.02,0.000138,2]
[334083151,1722750642357,-1569.45565892,0.00013833,2]
[334083153,1722750642366,-237.98,0.00013878,2]
[334083155,1722750642375,-246.2803027,0.00013881,2]
[334083157,1722750642384,-122870.889674,0.0001389,2]
[334083159,1722750642395,-151.0,0.000139,2]
[334083161,1722750642404,-151.0,0.000139,2]
[334083163,1722750642414,-151.0,0.000139,2]
[334083165,1722750642424,-246.160328,0.000139,2]
[334083167,1722750642433,-151.0,0.000139,2]
[334083169,1722750642445,-151.0,0.000139,2]
[334083170,1722750642454,-151.0,0.000139,2]
[334083172,1722750642463,-166.06411,0.000139,2]
[334083174,1722750642472,-166.06411,0.000139,2]
[334083176,1722750642483,-242.406682,0.000139,2]
[334083178,1722750642492,-151.0,0.000139,2]
[334083180,1722750642501,-151.0,0.000139,2]
[334083182,1722750642510,-151.0,0.000139,2]
[334083184,1722750642520,-151.0,0.000139,2]
[334083185,1722750642530,-151.0,0.000139,2]
[334083186,1722750642539,-151.0,0.000139,2]
[334083187,1722750642548,-151.0,0.000139,2]
[334083188,1722750642557,-151.160958,0.000139,2]
[334083189,1722750642567,-151.0,0.000139,2]
[334083190,1722750642576,-713.476676,0.000139,2]
[334083191,1722750642586,-323.570345,0.000139,2]
[334083192,1722750642595,-323.570345,0.000139,2]
[334083193,1722750642604,-831.436476,0.000139,2]
[334083194,1722750642613,-831.436476,0.000139,2]
[334083195,1722750642622,-189.737624,0.000139,2]
[334083196,1722750642631,-189.737624,0.000139,2]
[334083197,1722750642640,-234.871424,0.000139,2]
[334083198,1722750642649,-151.0,0.000139,2]
[334083199,1722750642658,-234.871424,0.000139,2]
[334083200,1722750642667,-151.0,0.000139,2]
[334083201,1722750642677,-151.0,0.000139,2]
[334083202,1722750642686,-151.0,0.000139,2]
[334083203,1722750642695,-151.0,0.000139,2]
[334083204,1722750642704,-151.0,0.000139,2]
[334083205,1722750642713,-151.0,0.000139,2]
[334083206,1722750642722,-151.0,0.000139,2]
[334083207,1722750642731,-151.0,0.000139,2]
[334083208,1722750642740,-1015.542528,0.000139,2]
[334083209,1722750642749,-151.436312,0.000139,2]
[334083210,1722750642758,-151.0,0.000139,2]
[334083211,1722750642767,-473.093571,0.000139,2]
[334083212,1722750642776,-473.093571,0.000139,2]
[334083213,1722750642786,-503.361738,0.000139,2]
[334083214,1722750642795,-503.361738,0.000139,2]
[334083215,1722750642804,-151.0,0.000139,2]
[334083216,1722750642813,-255.968811,0.000139,2]
[334083217,1722750642823,-255.968811,0.000139,2]
[334083218,1722750642833,-151.0,0.000139,2]
[334083219,1722750642842,-279.88812,0.000139,2]
[334083221,1722750642851,-151.0,0.000139,2]
[334083223,1722750642860,-279.88812,0.000139,2]
[334083225,1722750642869,-360.973486,0.000139,2]
[334083227,1722750642879,-360.973486,0.000139,2]
[334083230,1722750642888,-151.0,0.000139,2]
[334083232,1722750642897,-151.0,0.000139,2]
[334083234,1722750642907,-151.0,0.000139,2]
[334083235,1722750642918,-151.0,0.000139,2]
[334083236,1722750642928,-151.0,0.000139,2]
[334083237,1722750642939,-151.0,0.000139,2]
[334083238,1722750642950,-151.0,0.000139,2]
[334083239,1722750642959,-375.338556,0.000139,2]
[334083240,1722750642968,-375.338556,0.000139,2]
[334083241,1722750642977,-189.604451,0.000139,2]
[334083242,1722750642988,-189.604451,0.000139,2]
[334083243,1722750642998,-459.525985,0.000139,2]
[334083244,1722750643008,-459.525985,0.000139,2]
[334083245,1722750643018,-151.0,0.000139,2]
[334083246,1722750643027,-151.601312,0.000139,2]
[334083247,1722750643036,-151.601312,0.000139,2]
[334083248,1722750643049,-151.0,0.000139,2]
[334083249,1722750643058,-680.539283,0.000139,2]
[334083250,1722750643067,-151.0,0.000139,2]
[334083251,1722750643076,-680.539283,0.000139,2]
[334083252,1722750643087,-151.0,0.000139,2]
[334083253,1722750643095,-151.0,0.000139,2]
[334083254,1722750643105,-2645.392712,0.000139,2]
[334083255,1722750643115,-3120.899465,0.000139,2]
[334083256,1722750643124,-2645.392712,0.000139,2]
[334083257,1722750643134,-3120.899465,0.000139,2]
[334083258,1722750643143,-159.297595,0.000139,2]
[334083259,1722750643153,-2340.034993,0.000139,2]
[334083260,1722750643162,-159.297595,0.000139,2]
[334083261,1722750643171,-2340.034993,0.000139,2]
[334083262,1722750643180,-494.512697,0.000139,2]
[334083263,1722750643189,-151.0,0.000139,2]
[334083264,1722750643200,-494.512697,0.000139,2]
[334083265,1722750643210,-151.0,0.000139,2]
[334083266,1722750643219,-151.0,0.000139,2]
[334083267,1722750643228,-3354.374945,0.000139,2]
[334083268,1722750643237,-3354.374945,0.000139,2]
[334083269,1722750643247,-416.744918,0.000139,2]
[334083270,1722750643256,-416.744918,0.000139,2]
[334083276,1722750643358,-151.0,0.000139,2]
[334083279,1722750643418,-151.0,0.000139,2]
[334083281,1722750643428,-151.0,0.000139,2]
[334083283,1722750643437,-1186.43854,0.000139,2]
[334083285,1722750643446,-151.0,0.000139,2]
[334083287,1722750643456,-1186.43854,0.000139,2]
[334083289,1722750643465,-635.217773,0.000139,2]
[334083291,1722750643475,-1118.602255,0.000139,2]
[334083293,1722750643485,-151.0,0.000139,2]
[334083295,1722750643495,-635.217773,0.000139,2]
[334083297,1722750643504,-1118.602255,0.000139,2]
[334083299,1722750643513,-566.105438,0.000139,2]
[334083301,1722750643523,-566.105438,0.000139,2]
[334083303,1722750643532,-193.960991,0.000139,2]
[334083305,1722750643541,-1464.475567,0.000139,2]
[334083307,1722750643551,-193.960991,0.000139,2]
[334083309,1722750643561,-1464.475567,0.000139,2]
[334083311,1722750643570,-151.0,0.000139,2]
[334083313,1722750643580,-151.0,0.000139,2]
[334083315,1722750643589,-151.0,0.000139,2]
[334083317,1722750643599,-245.573955,0.000139,2]
[334083319,1722750643608,-193.010666,0.000139,2]
[334083321,1722750643617,-151.0,0.000139,2]
[334083323,1722750643626,-193.010666,0.000139,2]
[334083325,1722750643635,-430.613404,0.000139,2]
[334083327,1722750643646,-151.0,0.000139,2]
[334083329,1722750643655,-430.613404,0.000139,2]
[334083330,1722750643665,-151.0,0.000139,2]
[334083332,1722750643674,-10000.0,0.000139,2]
[334083334,1722750643683,-10000.0,0.000139,2]
[334083336,1722750643693,-6900.723292,0.000139,2]
[334083338,1722750643706,-1541.449574,0.000139,2]
[334083340,1722750643716,-151.0,0.000139,2]
[334083342,1722750643727,-11255.6302023,0.000139,2]
[334083344,1722750643738,-1541.449574,0.000139,2]
[334083346,1722750643748,-151.0,0.000139,2]
[334083348,1722750643758,-151.0,0.000139,2]
[334083350,1722750643768,-162.460754,0.000139,2]
[334083352,1722750643778,-151.0,0.000139,2]
[334083354,1722750643789,-151.0,0.000139,2]
[334083356,1722750643798,-151.0,0.000139,2]
[334083359,1722750643810,-151.0,0.000139,2]
[334083361,1722750643820,-151.0,0.000139,2]
[334083363,1722750643831,-151.072879,0.000139,2]
[334083365,1722750643841,-151.0,0.000139,2]
[334083367,1722750643851,-151.072879,0.000139,2]
[334083369,1722750643861,-151.0,0.000139,2]
[334083371,1722750643870,-151.0,0.000139,2]
[334083373,1722750643880,-151.0,0.000139,2]
[334083375,1722750643889,-522.663533,0.000139,2]
[334083377,1722750643899,-151.0,0.000139,2]
[334083379,1722750643909,-522.663533,0.000139,2]
[334083381,1722750643920,-410.924853,0.000139,2]
[334083384,1722750643931,-410.924853,0.000139,2]
[334083386,1722750643942,-281.085265,0.000139,2]
[334083388,1722750643951,-281.085265,0.000139,2]
[334083389,1722750643961,-848.33624,0.000139,2]
[334083390,1722750643971,-848.33624,0.000139,2]
[334083391,1722750643980,-252.92,0.00013973,2]
[334083392,1722750643990,-367.38,0.00013973,2]
[334083393,1722750643999,-279.36,0.00013973,2]
[334083394,1722750644009,-15358.8612093,0.0001398,2]
[334083395,1722750644019,-1125.56302023,0.00013991,2]
[334083396,1722750644028,-536.95660692,0.00014,2]
[334083397,1722750644040,-500.0,0.00014,2]
[334083398,1722750644050,-150.0,0.00014,2]
[334083399,1722750644060,-151.0,0.00014,2]
[334083400,1722750644069,-151.0,0.00014,2]
[334083401,1722750644079,-151.0,0.00014,2]
[334083402,1722750644088,-151.0,0.00014,2]
[334083403,1722750644099,-151.0,0.00014,2]
[334083404,1722750644112,-151.0,0.00014,2]
[334083405,1722750644125,-600.0,0.00014,2]
[334083406,1722750644136,-15358.8612093,0.00014,2]
[334083407,1722750644146,-1125.56302023,0.00014,2]
[334083408,1722750644155,-1582.0,0.00014011,2]
[334083409,1722750644166,-621.0,0.00014011,2]
[334083410,1722750644176,-1256.0,0.00014011,2]
[334083411,1722750644187,-1925.0,0.00014011,2]
[334083412,1722750644197,-1135.0,0.00014011,2]
[334083413,1722750644207,-446.0,0.00014011,2]
[334083414,1722750644218,-811.0,0.00014011,2]
[334083415,1722750644228,-451.0,0.00014011,2]
[334083416,1722750644238,-550.0,0.00014011,2]
[334083417,1722750644247,-1048.19,0.00014011,2]
[334083418,1722750644257,-3288.0,0.00014011,2]
[334083419,1722750644267,-21734.0,0.00014011,2]
[334083420,1722750644276,-150.0,0.00014011,2]
[334083421,1722750644286,-151.0,0.00014011,2]
[334083422,1722750644296,-151.0,0.00014011,2]
[334083423,1722750644306,-15358.8612093,0.00014126,2]
[334083424,1722750644316,-1125.56302023,0.00014126,2]
[334083425,1722750644326,-15358.8612093,0.00014136,2]
[334083426,1722750644335,-1125.56302023,0.00014136,2]
[334083427,1722750644345,-1570.0820817,0.00014136,2]
[334083428,1722750644354,-17205.1025304,0.00014136,2]
[334083429,1722750644364,-5430.6392562,0.00014136,2]
[334083430,1722750644374,-151.0,0.00014136,2]
[334083431,1722750644383,-151.0,0.00014136,2]
[334083432,1722750644393,-151.0,0.00014136,2]
[334083433,1722750644403,-21186.76035766,0.00014156,2]
[334083434,1722750644579,-151.477,0.00011011,2]
[334083435,1722750644588,-110.63762984,0.0001116,2]
[334083436,1722750644600,-510.50477566,0.0001116,2]
[334083437,1722750644633,-3355.67156864,0.0001116,2]
[334083438,1722750644643,-301.56324646,0.0001254,2]
[334083439,1722750644656,-367.59994124,0.00012696,2]